bitfinex/quotes_ETHUSD_20251031
["timestamp","ask_amount","ask_price","bid_price","bid_amount"]
[1761870356719,4.02249322,3812.7,3812.6,0.001]
[1761870356920,12.72712265,3812.7,3812.6,0.001]
[1761870357118,13.89526519,3812.7,3812.6,0.001]
[1761870357315,19.89535269,3812.7,3812.6,0.001]
[1761870359228,23.06385669,3812.7,3812.6,0.001]
[1761870359426,23.44760958,3812.7,3812.6,0.001]
[1761870359631,4.42834123,3812.2,3812.1,1e-08]
[1761870359838,5.61744663,3812.2,3812.1,1e-08]
[1761870360024,6.49062415,3812.2,3812.1,1e-08]
[1761870360348,4.42854767,3811.9,3811.1,0.2073]
[1761870360526,10.42711902,3811.9,3811.8,0.4583]
[1761870360838,11.83964021,3811.9,3811.8,0.9408]
[1761870361144,11.83964021,3811.9,3811.8,0.4835]
[1761870361853,12.22453465,3811.9,3811.8,0.001]
[1761870362053,11.97293465,3811.9,3811.8,0.001]
[1761870362235,11.97293465,3811.9,3811.8,0.9408]
[1761870362435,12.22263465,3811.9,3811.8,0.001]
[1761870362631,12.78023465,3811.9,3811.8,0.001]
[1761870362836,12.41073465,3811.9,3811.8,0.001]
[1761870363731,12.22263465,3811.9,3811.8,0.001]
[1761870365071,12.78023465,3811.9,3811.8,0.001]
[1761870365239,11.97293465,3811.9,3811.8,0.001]
[1761870365443,11.97293465,3811.9,3811.8,0.4835]
[1761870365739,18.46093464,3811.9,3811.8,0.4835]
[1761870366344,19.12033253,3811.9,3811.8,0.001]
[1761870368937,18.87243253,3811.9,3811.8,0.001]
[1761870369135,18.87243253,3811.9,3811.8,0.4835]
[1761870370142,18.33363409,3811.9,3811.8,0.4835]
[1761870370342,18.33363409,3811.9,3811.8,0.9408]
[1761870370631,12.36125736,3811.9,3811.8,0.9408]
[1761870370836,9.11136366,3811.9,3811.8,0.9408]
[1761870371130,10.51104366,3811.9,3811.8,0.9408]
[1761870371761,6.48799999,3811.9,3811.8,0.9408]
[1761870372059,7.88767999,3811.9,3811.8,0.9408]
[1761870372260,10.51104366,3811.9,3811.8,0.9408]
[1761870372672,7.88767999,3811.9,3811.8,0.9408]
[1761870372835,10.51104366,3811.9,3811.8,0.9408]
[1761870374565,7.88767999,3811.9,3811.8,0.9408]
[1761870375844,7.88767999,3811.9,3811.8,0.96703432]
[1761870376050,7.88767999,3811.9,3811.8,0.9408]
[1761870377274,1.39968,3811.9,3811.8,0.9408]
[1761870378865,4.02304367,3811.9,3811.8,0.9408]
[1761870379065,1.39968,3811.9,3811.8,0.9408]
[1761870379743,4.02304367,3811.9,3811.8,0.9408]
[1761870380456,1.39968,3811.9,3811.8,0.9408]
[1761870381457,6.98645541,3811.9,3811.8,0.9408]
[1761870383785,9.61181908,3811.9,3811.8,0.9408]
[1761870384156,6.98845541,3811.9,3811.8,0.9408]
[1761870390103,8.21213908,3811.9,3811.8,0.9408]
[1761870390722,5.58877541,3811.9,3811.8,0.9408]
[1761870390933,8.21213908,3811.9,3811.8,0.4835]
[1761870391207,10.45675914,3811.9,3811.8,0.001]
[1761870391382,10.98785914,3811.9,3811.8,0.001]
[1761870393506,12.38753914,3811.9,3811.8,0.001]
[1761870394308,10.73762984,3811.9,3811.8,0.4787]
[1761870394709,11.02022984,3811.9,3811.8,0.001]
[1761870394909,11.47712984,3811.9,3811.8,0.001]
[1761870395110,11.55332984,3811.9,3811.8,0.001]
[1761870396414,11.09642984,3811.9,3811.8,0.001]
[1761870397282,14.61694825,3811.9,3811.8,0.001]
[1761870399835,15.07004825,3811.9,3811.8,0.001]
[1761870402024,15.90415755,3811.9,3811.8,0.001]
[1761870403637,21.93905754,3811.9,3811.8,0.001]
[1761870404948,22.39215754,3811.9,3811.8,0.001]
[1761870405722,22.79766154,3811.9,3811.8,0.001]
[1761870408351,21.58025754,3811.9,3811.8,0.001]
[1761870408540,21.86075754,3811.9,3811.8,0.001]
[1761870410020,0.002,3811.9,3811.8,0.9579]
[1761870410241,4.55564691,3811.9,3811.8,0.9579]
[1761870410448,5.95532691,3811.9,3811.8,0.9579]
[1761870411154,7.17901058,3811.9,3811.8,0.9579]
[1761870411519,8.57869058,3811.9,3811.8,0.9579]
[1761870412170,8.57869058,3811.9,3811.8,0.4871]
[1761870412375,8.57869058,3811.9,3811.8,0.9579]
[1761870413249,5.95532691,3811.9,3811.8,0.9579]
[1761870413929,8.57869058,3811.9,3811.8,0.9579]
[1761870415170,5.95532691,3811.9,3811.8,0.9579]
[1761870417257,8.57869058,3811.9,3811.8,0.9579]
[1761870418777,2.62363898,3811.5,3811.3,0.78982912]
[1761870418930,2.62363898,3811.5,3811.0,0.001]
[1761870418931,4.02359435,3811.1,3811.0,0.001]
[1761870419130,10.74516223,3811.1,3811.0,0.001]
[1761870419377,8.57724126,3811.1,3811.0,0.4871]
[1761870420959,4.55364691,3811.1,3811.0,0.4871]
[1761870421158,8.57724126,3811.1,3811.0,0.9579]
[1761870421361,8.57724126,3811.1,3811.0,0.4871]
[1761870423883,8.57724126,3811.1,3811.0,0.9579]
[1761870424344,8.57724126,3811.1,3811.0,0.4871]
[1761870424746,7.17756126,3811.1,3811.0,0.4871]
[1761870425355,11.73120817,3811.1,3811.0,0.4871]
[1761870425577,13.16670903,3811.1,3811.0,0.001]
[1761870425791,14.10240903,3811.1,3811.0,0.001]
[1761870427086,15.50208903,3811.1,3811.0,0.001]
[1761870427488,15.04528903,3811.1,3811.0,0.001]
[1761870428188,15.50208903,3811.1,3811.0,0.001]
[1761870433510,16.27719341,3811.1,3811.0,0.001]
[1761870433659,15.87168941,3811.1,3811.0,0.001]
[1761870433857,16.27919341,3811.1,3811.0,0.001]
[1761870435906,16.59638502,3811.1,3811.0,0.001]
[1761870436595,23.08438501,3811.1,3811.0,0.001]
[1761870436770,19.36338502,3811.1,3811.0,0.001]
[1761870437794,19.04619341,3811.1,3811.0,0.001]
[1761870438294,19.45787401,3811.1,3811.0,0.001]
[1761870440599,16.69087401,3811.1,3811.0,0.001]
[1761870440770,16.73291816,3811.1,3811.0,0.001]
[1761870444996,17.10251854,3811.1,3811.0,0.001]
[1761870445975,19.86951854,3811.1,3811.0,0.001]
[1761870446176,17.10251854,3811.1,3811.0,0.001]
[1761870447483,16.73291816,3811.1,3811.0,0.001]
[1761870449011,16.32123756,3811.1,3811.0,0.001]
[1761870451963,16.73292219,3811.1,3811.0,0.001]
[1761870453396,16.32127766,3811.1,3811.0,0.001]
[1761870454117,16.73291668,3811.1,3811.0,0.001]
[1761870455508,16.26471668,3811.1,3811.0,0.001]
[1761870456418,22.75271667,3811.1,3811.0,0.001]
[1761870457201,23.24191667,3811.1,3811.0,0.001]
[1761870457396,19.72847358,3811.1,3811.0,0.001]
[1761870458089,19.23927358,3811.1,3811.0,0.001]
[1761870458915,18.77177358,3811.1,3811.0,0.001]
[1761870459494,19.23927358,3811.1,3811.0,0.001]
[1761870459692,19.72847358,3811.1,3811.0,0.001]
[1761870460698,20.09807396,3811.1,3811.0,0.001]
[1761870461939,19.60887396,3811.1,3811.0,0.001]
[1761870463042,20.09807396,3811.1,3811.0,0.001]
[1761870463740,19.60887396,3811.1,3811.0,0.001]
[1761870464231,20.09807396,3811.1,3811.0,0.001]
[1761870466649,19.14137396,3811.1,3811.0,0.001]
[1761870466808,19.60887396,3811.1,3811.0,0.001]
[1761870467963,0.41363902,3811.1,3811.0,0.9355]
[1761870468125,8.21976508,3811.1,3811.0,0.9355]
[1761870468326,6.99553073,3811.1,3811.0,0.9355]
[1761870469344,5.59585073,3811.1,3811.0,0.9355]
[1761870469558,6.99553073,3811.1,3811.0,1.29146876]
[1761870469723,6.99553073,3811.1,3811.0,0.9355]
[1761870479650,9.61944508,3811.1,3811.0,0.9355]
[1761870481691,9.61944508,3811.1,3811.0,0.001]
[1761870482000,9.61944508,3811.1,3811.0,0.4893]
[1761870482198,9.61944508,3811.1,3811.0,0.9696]
[1761870482403,6.99553073,3811.1,3811.0,0.9696]
[1761870489667,9.61944508,3811.1,3811.0,0.9696]
[1761870490001,9.61944508,3811.1,3811.0,0.4893]
[1761870490909,8.21976508,3811.1,3811.0,0.9696]
[1761870492566,8.21976508,3811.1,3811.0,0.4893]
[1761870493505,5.59585073,3811.1,3811.0,0.4893]
[1761870493715,5.59585073,3811.1,3811.0,0.9696]
[1761870495395,5.59585073,3811.1,3811.0,3.95295682]
[1761870495396,0.002,3811.1,3811.0,3.95295682]
[1761870495567,0.1324,3811.1,3811.0,3.97919665]
[1761870496570,0.1324,3811.1,3811.0,3.95295682]
[1761870497535,0.1324,3811.1,3811.0,1.32897362]
[1761870497733,0.1324,3811.1,3811.0,0.9696]
[1761870499936,2.75631435,3811.1,3811.0,0.4893]
[1761870500321,0.1324,3811.1,3811.0,0.4893]
[1761870500847,0.1324,3811.1,3811.0,0.9485]
[1761870502731,2.75631435,3811.1,3811.0,0.4893]
[1761870503231,0.1324,3811.1,3811.0,0.4893]
[1761870504760,1.53208,3811.1,3811.0,0.4893]
[1761870506052,1.53208,3811.1,3811.0,0.9485]
[1761870506655,0.1324,3811.1,3811.0,3.95860168]
[1761870510051,0.002,3811.1,3811.0,3.95860168]
[1761870513751,0.002,3811.1,3811.0,3.93236185]
[1761870519349,4.55549781,3811.1,3811.0,3.47316185]
[1761870519556,4.55549781,3811.1,3811.0,3.93236185]
[1761870521828,0.002,3811.1,3811.0,3.93236185]
[1761870521976,0.002,3811.1,3811.0,4.06276185]
[1761870523623,0.002,3811.1,3811.0,3.60356185]
[1761870523920,4.55549781,3811.1,3811.0,4.06276185]
[1761870524496,4.55549781,3811.1,3811.0,4.08900168]
[1761870525921,0.002,3811.1,3811.0,4.08900168]
[1761870526121,0.002,3811.1,3811.0,3.95860168]
[1761870531453,0.002,3811.1,3811.0,3.93236185]
[1761870532056,0.002,3811.1,3811.0,3.95860168]
[1761870534758,0.002,3811.1,3811.0,3.93236185]
[1761870534965,0.002,3811.1,3811.0,3.95860168]
[1761870535169,0.002,3811.1,3811.0,4.74740799]
[1761870535939,0.002,3811.1,3811.0,4.87780799]
[1761870540434,0.002,3811.1,3811.0,6.68299199]
[1761870540768,0.002,3811.9,3811.8,3.02893649]
[1761870540955,0.002,3811.9,3811.8,3.52037081]
[1761870541131,0.002,3811.9,3811.8,4.12737081]
[1761870541330,0.002,3811.9,3811.8,4.23250048]
[1761870542585,0.002,3811.9,3811.8,5.63218048]
[1761870542784,0.002,3811.9,3811.8,6.88686542]
[1761870544769,0.002,3813.5,3812.7,0.405504]
[1761870545103,0.002,3813.5,3813.0,4.89299087]
[1761870545247,0.002,3813.5,3813.0,5.39581693]
[1761870545448,0.002,3813.5,3813.0,5.36959087]
[1761870545642,1e-08,3813.7,3813.4,3.02783577]
[1761870545890,1e-08,3813.7,3813.6,8.04639606]
[1761870546052,1e-08,3813.7,3813.6,3.96949825]
[1761870546251,1e-08,3813.7,3813.6,4.10080152]
[1761870547761,1e-08,3813.7,3813.6,4.07457958]
[1761870547978,1e-08,3813.7,3813.6,4.74427072]
[1761870548687,1e-08,3813.7,3813.6,10.72367047]
[1761870548893,1e-08,3813.7,3813.6,10.69744853]
[1761870549092,1e-08,3813.7,3813.6,6.14395072]
[1761870549751,1e-08,3814.7,3814.6,3.67931084]
[1761870549957,1e-08,3814.7,3814.6,5.73529649]
[1761870550201,1e-08,3814.7,3814.6,6.18568143]
[1761870551793,1e-08,3814.7,3814.6,6.97356586]
[1761870555098,1e-08,3814.7,3814.6,7.10396586]
[1761870560094,1e-08,3815.7,3815.6,3.70902379]
[1761870560321,1e-08,3815.7,3815.6,10.03310398]
[1761870560527,1e-08,3815.7,3815.6,10.49430398]
[1761870560726,1e-08,3815.7,3815.6,11.16420398]
[1761870567124,1e-08,3815.7,3815.6,6.14950617]
[1761870567428,0.94540001,3815.7,3815.6,5.06230217]
[1761870567744,0.94740001,3815.7,3815.6,3.29171979]
[1761870568440,0.94740001,3815.7,3815.6,3.69722379]
[1761870570137,0.94740001,3815.7,3815.6,3.82762379]
[1761870570891,0.94740001,3815.7,3815.6,3.42211979]
[1761870571243,0.94740001,3815.7,3815.6,3.31792798]
[1761870571595,0.94740001,3815.7,3815.6,2.64802798]
[1761870578146,0.94740001,3815.7,3815.6,2.62181979]
[1761870582022,0.94740001,3815.7,3815.6,0.001]
[1761870582184,1.60740054,3815.7,3815.6,0.001]
[1761870584163,1.60740054,3815.7,3815.6,2.62181979]
[1761870584378,0.94740001,3815.7,3815.6,2.62181979]
[1761870585992,0.94740001,3815.7,3815.6,0.001]
[1761870586593,0.94740001,3815.7,3815.6,2.62181979]
[1761870587887,0.94740001,3815.7,3815.6,0.001]
[1761870588087,0.94740001,3815.7,3815.6,2.62181979]
[1761870588292,6.5211053,3815.7,3815.6,0.001]
[1761870588619,7.44316459,3815.7,3815.6,0.001]
[1761870589817,6.5211053,3815.7,3815.6,0.001]
[1761870600322,7.9207853,3815.7,3815.2,0.001]
[1761870600493,8.37693115,3815.3,3815.2,0.001]
[1761870600994,6.22290529,3815.3,3815.2,0.001]
[1761870601317,0.6492,3815.3,3815.2,0.001]
[1761870601522,6.22290529,3815.3,3815.2,0.001]
[1761870601826,0.1822,3815.3,3815.2,2.62209456]
[1761870602121,1.53008,3815.6,3815.3,2.62099278]
[1761870602327,0.482,3815.4,3815.3,2.62099278]
[1761870602745,0.482,3815.4,3815.2,0.001]
[1761870602916,0.1787,3815.3,3815.2,2.62206911]
[1761870605912,8.84043115,3815.3,3815.2,0.001]
[1761870606118,10.12916001,3815.3,3815.2,0.001]
[1761870608014,7.50813415,3815.3,3815.2,0.001]
[1761870608214,0.6457,3815.3,3815.2,0.001]
[1761870608818,8.84043115,3815.3,3815.2,0.001]
[1761870611160,6.21940529,3815.3,3815.2,0.001]
[1761870611361,8.84043115,3815.3,3815.2,0.001]
[1761870613851,6.21940529,3815.3,3815.2,0.001]
[1761870614052,8.84043115,3815.3,3815.2,0.001]
[1761870615778,10.24011115,3815.3,3815.2,0.001]
[1761870615961,11.5262166,3815.3,3815.2,0.001]
[1761870617262,10.24011115,3815.3,3815.2,0.001]
[1761870617465,0.00200001,3815.7,3815.2,0.4829]
[1761870617665,2.62083557,3815.6,3815.2,0.4829]
[1761870617867,0.1304,3815.5,3815.3,0.02621025]
[1761870618793,0.1304,3815.5,3815.4,0.4819]
[1761870623686,0.6294,3815.5,3815.2,2.62207298]
[1761870625199,1.101,3815.5,3815.2,2.62207298]
[1761870625598,0.6294,3815.5,3815.2,2.62207298]
[1761870625784,0.1304,3815.5,3815.3,3.14541728]
[1761870626390,0.1304,3815.5,3815.4,3.13256674]
[1761870626778,0.1304,3815.5,3815.4,2.62095717]
[1761870627013,0.1304,3815.5,3815.3,3.14542785]
[1761870627156,0.499,3815.4,3815.3,3.14542785]
[1761870628112,0.1304,3815.5,3815.4,2.62095717]
[1761870628295,0.1304,3815.5,3815.4,3.19780479]
[1761870628603,0.6294,3815.5,3815.4,3.19780479]
[1761870629310,0.1304,3815.5,3815.4,3.19780479]
[1761870629465,0.6294,3815.5,3815.2,0.001]
[1761870629665,1.101,3815.5,3815.2,0.001]
[1761870629887,1.101,3815.5,3815.2,2.62205334]
[1761870630098,1.101,3815.5,3815.3,2.6210178]
[1761870630487,0.1573,3815.4,3815.3,2.6210178]
[1761870631365,0.1573,3815.4,3815.2,2.62207991]
[1761870631692,0.9706,3815.3,3815.2,0.001]
[1761870633395,4.28549101,3815.3,3815.2,0.001]
[1761870635187,0.002,3815.6,3815.2,0.4864]
[1761870635188,1.40168,3815.6,3815.2,0.4864]
[1761870635397,1.87328,3815.6,3815.3,0.02621025]
[1761870635582,1.40168,3815.6,3815.2,0.001]
[1761870635784,0.4716,3815.5,3815.2,0.001]
[1761870635972,0.4716,3815.5,3815.2,2.62209431]
[1761870636174,0.499,3815.3,3815.2,2.62209431]
[1761870636395,0.499,3815.3,3815.2,0.001]
[1761870636581,6.54430529,3815.3,3815.2,0.001]
[1761870637197,0.9706,3815.3,3815.2,0.001]
[1761870637398,0.499,3815.3,3815.2,0.001]
[1761870637899,0.499,3815.3,3815.2,2.62209456]
[1761870638100,5.57370529,3815.4,3815.2,2.62209456]
[1761870638101,5.57370529,3815.4,3815.2,3.10749456]
[1761870638269,0.4736,3815.6,3815.3,2.62099369]
[1761870638469,0.002,3815.6,3815.3,2.62099369]
[1761870639186,0.002,3815.6,3815.2,2.62207145]
[1761870639380,0.002,3815.6,3815.2,0.001]
[1761870639381,5.57370529,3815.4,3815.2,0.001]
[1761870639580,0.499,3815.3,3815.2,0.001]
[1761870640705,0.9706,3815.3,3815.2,0.001]
[1761870641396,5.51439555,3815.3,3815.2,0.001]
[1761870643170,5.64479555,3815.3,3815.2,0.001]
[1761870643391,6.20947511,3815.3,3815.2,0.001]
[1761870643819,5.64479555,3815.3,3815.2,0.001]
[1761870646806,8.26582141,3815.3,3815.2,0.001]
[1761870647181,9.66550141,3815.3,3815.2,0.001]
[1761870650748,9.63929081,3815.3,3815.2,0.001]
[1761870650944,7.01826495,3815.3,3815.2,0.001]
[1761870651112,6.54666495,3815.3,3815.2,0.001]
[1761870651320,6.07387555,3815.3,3815.2,0.001]
[1761870652247,6.54117555,3815.3,3815.2,0.001]
[1761870654811,7.01837555,3815.3,3815.2,0.001]
[1761870655636,6.54117555,3815.3,3815.2,0.001]
[1761870661172,9.63940141,3815.3,3815.2,0.001]
[1761870661467,10.55580323,3815.3,3815.2,0.001]
[1761870665770,6.99027737,3815.3,3815.2,0.001]
[1761870666073,9.16220141,3815.3,3815.2,0.001]
[1761870666274,0.002,3815.6,3815.2,0.6744]
[1761870666484,0.002,3815.6,3815.5,0.4842]
[1761870666691,0.002,3815.6,3815.5,3.10508848]
[1761870666889,0.002,3815.6,3815.5,4.18882358]
[1761870667076,0.002,3815.6,3815.5,4.31922358]
[1761870667798,0.002,3815.6,3815.5,4.59432758]
[1761870670119,0.002,3815.6,3815.5,5.99400758]
[1761870670268,0.002,3816.1,3815.9,3.02611774]
[1761870670454,0.002,3816.1,3815.9,4.32724951]
[1761870670657,0.002,3816.1,3815.9,10.29693119]
[1761870670889,1e-08,3816.1,3816.0,5.37582907]
[1761870671196,1e-08,3816.7,3816.6,2.6201331]
[1761870671357,1e-08,3816.7,3816.6,9.47951398]
[1761870671690,1e-08,3816.7,3816.6,11.14810638]
[1761870671898,1e-08,3816.7,3816.6,11.25309036]
[1761870672268,1e-08,3816.7,3816.6,11.53427782]
[1761870672674,0.01,3817.7,3816.6,11.53427782]
[1761870672675,1e-08,3817.7,3817.6,3.64685077]
[1761870672870,1e-08,3817.7,3817.6,10.08242078]
[1761870673075,1e-08,3817.7,3817.6,11.3264221]
[1761870673299,1e-08,3817.7,3817.6,6.78262655]
[1761870674811,1e-08,3817.7,3817.6,5.38294655]
[1761870677893,1e-08,3817.7,3817.6,4.50424255]
[1761870678093,1e-08,3817.7,3817.6,3.58494677]
[1761870678495,1e-08,3817.7,3817.6,4.01664523]
[1761870678692,1e-08,3817.7,3817.6,3.99045077]
[1761870678898,1e-08,3817.7,3817.6,4.01664523]
[1761870679708,1e-08,3817.7,3817.6,5.41632523]
[1761870679910,1e-08,3817.7,3817.6,6.64810078]
[1761870681220,1e-08,3817.7,3817.6,6.75305749]
[1761870681921,0.002,3817.8,3817.6,6.75305749]
[1761870681922,0.002,3818.6,3818.5,3.02433338]
[1761870682130,0.002,3818.6,3818.5,4.91030167]
[1761870682286,1e-08,3818.7,3818.6,3.4843648]
[1761870682486,1e-08,3818.7,3818.6,5.01066245]
[1761870683618,1e-08,3818.7,3818.6,5.03685005]
[1761870683821,1e-08,3818.7,3818.6,5.01066245]
[1761870684319,1e-08,3818.7,3818.6,5.03685005]
[1761870684816,1e-08,3818.7,3818.6,5.01066245]
[1761870685186,1e-08,3818.7,3818.6,5.03685005]
[1761870685813,1e-08,3818.7,3818.6,5.01066245]
[1761870685981,1e-08,3818.7,3818.6,6.41034245]
[1761870687995,0.00200001,3818.7,3818.6,6.41034245]
[1761870688207,0.00200001,3818.7,3818.6,6.54074245]
[1761870692335,0.00200001,3818.7,3818.6,6.645673]
[1761870692537,0.00200001,3818.7,3818.6,6.54074245]
[1761870693425,0.00200001,3818.7,3818.6,6.6456686]
[1761870693631,0.002,3819.5,3819.4,3.02371628]
[1761870693830,0.002,3819.5,3819.4,4.07419953]
[1761870694018,0.002,3819.5,3819.4,4.66959953]
[1761870694631,2.64337976,3820.9,3819.4,6.06927953]
[1761870694632,0.1917,3820.9,3819.4,6.06927953]
[1761870694836,0.4789,3821.3,3820.6,0.405504]
[1761870695042,0.4789,3821.6,3819.9,0.1304]
[1761870695233,0.4789,3821.6,3820.3,2.61759547]
[1761870695436,0.4789,3821.6,3820.4,0.43167926]
[1761870695626,0.4789,3821.6,3821.3,2.61688675]
[1761870695825,0.4789,3821.6,3821.4,0.02616841]
[1761870696246,0.403,3821.5,3821.4,3.0485144]
[1761870696555,0.403,3821.5,3821.4,3.02234599]
[1761870697211,0.01,3821.7,3821.6,3.02220904]
[1761870697522,0.01,3821.7,3821.6,3.04837609]
[1761870697839,0.8912,3821.7,3821.6,3.02220904]
[1761870698442,0.413,3821.7,3821.6,3.04837609]
[1761870699127,0.8912,3821.7,3821.6,3.02220904]
[1761870699461,0.8912,3821.7,3820.7,0.465]
[1761870699462,0.8912,3821.7,3820.1,0.465]
[1761870699615,0.4789,3821.6,3821.1,2.61703071]
[1761870700010,0.403,3821.2,3821.0,0.405504]
[1761870700340,0.403,3821.2,3820.1,3.40437463]
[1761870700533,0.4789,3821.1,3820.5,2.61745844]
[1761870700742,0.5947,3820.6,3820.5,2.61745844]
[1761870700907,0.4889,3821.7,3820.5,2.61745844]
[1761870701242,0.4889,3821.7,3820.9,0.405504]
[1761870701451,0.4889,3821.7,3821.6,2.61670504]
[1761870701609,0.4889,3821.7,3821.6,2.64287209]
[1761870701943,0.8919,3821.7,3821.6,2.64287209]
[1761870702241,0.8919,3821.7,3821.0,0.02617115]
[1761870702455,0.8919,3821.7,3820.7,2.6173169]
[1761870702456,0.4782,3821.6,3820.7,1.39968]
[1761870702658,0.4782,3821.6,3821.1,2.61703959]
[1761870702964,0.4038,3821.2,3821.1,2.61704744]
[1761870703459,0.8812,3821.2,3821.1,2.61704744]
[1761870703660,0.4038,3821.2,3821.1,2.64321791]
[1761870704153,0.01,3821.7,3821.5,2.61672839]
[1761870704355,0.01,3821.7,3821.6,0.02616705]
[1761870704653,0.01,3821.7,3821.6,3.07680504]
[1761870705012,0.01,3821.7,3821.6,3.10297209]
[1761870705227,0.01,3821.7,3821.6,3.23337209]
[1761870705426,0.01,3821.7,3821.6,3.81838816]
[1761870705627,0.01,3821.7,3821.6,3.79222111]
[1761870706541,0.01,3821.7,3821.6,3.81838816]
[1761870706849,0.01,3821.7,3821.6,4.19772511]
[1761870707032,0.01,3821.7,3821.6,3.76379216]
[1761870707414,0.4104,3821.7,3821.6,3.73762511]
[1761870707845,0.8885,3821.7,3821.6,0.1304]
[1761870708051,0.8885,3821.7,3821.6,2.74710504]
[1761870709257,0.4104,3821.7,3821.6,2.74710504]
[1761870709456,0.8885,3821.7,3821.6,2.74710504]
[1761870710276,0.8885,3821.7,3821.6,2.77327209]
[1761870710650,0.8885,3821.7,3821.6,2.74710504]
[1761870711178,0.01,3821.7,3821.6,4.68457023]
[1761870711336,0.01,3821.7,3821.6,5.92768318]
[1761870712671,0.01,3821.7,3821.6,6.03253342]
[1761870712844,0.01,3821.7,3821.6,5.92768318]
[1761870713291,0.01,3821.7,3821.6,4.95828318]
[1761870713473,0.01,3821.7,3821.6,5.45418318]
[1761870720519,0.01,3821.7,3821.6,5.92768318]
[1761870720713,0.002,3821.9,3821.8,2.6165681]
[1761870720872,0.002,3821.9,3821.8,5.79824291]
[1761870721072,0.002,3821.9,3821.8,6.24557723]
[1761870721393,0.01,3822.7,3822.6,4.4212045]
[1761870721594,0.01,3822.7,3822.6,5.0475045]
[1761870722103,0.01,3822.7,3822.6,5.5210045]
[1761870722305,0.01,3822.7,3822.6,6.33471514]
[1761870722505,0.01,3822.7,3822.6,5.86121514]
[1761870722674,0.4079,3822.7,3822.6,5.36531514]
[1761870723084,0.01,3822.7,3822.6,5.36531514]
[1761870723490,0.4088,3822.7,3822.6,5.36531514]
[1761870724889,0.01,3822.7,3822.6,5.36531514]
[1761870725096,0.01,3822.7,3822.6,5.86121514]
[1761870725730,0.4079,3822.7,3822.6,3.83523514]
[1761870726722,0.8954,3822.7,3822.6,3.83523514]
[1761870728195,0.01,3822.7,3822.6,5.73081514]
[1761870728412,0.01,3822.7,3822.6,4.33113514]
[1761870728928,0.01,3822.7,3822.6,3.83523514]
[1761870729090,0.4079,3822.7,3822.6,3.83523514]
[1761870729458,0.01,3822.7,3822.6,3.83523514]
[1761870729584,0.4088,3822.7,3822.6,3.83523514]
[1761870729783,0.8954,3822.7,3822.6,3.83523514]
[1761870730024,0.01,3822.7,3822.6,4.33113514]
[1761870730317,0.01,3822.7,3822.6,4.35729534]
[1761870731628,0.4079,3822.7,3822.6,3.83523514]
[1761870732225,0.4079,3822.7,3822.6,3.0215245]
[1761870732785,0.01,3822.7,3822.6,3.5174245]
[1761870733032,0.01,3822.7,3822.6,3.5435847]
[1761870735605,0.01,3822.7,3822.6,5.5471647]
[1761870735830,0.01,3822.7,3822.6,5.5210045]
[1761870735996,0.01,3822.7,3822.6,6.33471514]
[1761870737289,0.5039,3822.7,3822.6,2.7464205]
[1761870737491,0.9009,3822.7,3822.6,2.6160205]
[1761870741047,0.9029,3822.7,3822.6,2.6160205]
[1761870742072,0.5059,3822.7,3822.6,2.6160205]
[1761870742278,0.9029,3822.7,3822.6,2.6160205]
[1761870743264,0.9029,3822.7,3822.4,2.61610084]
[1761870743265,0.9029,3822.7,3822.3,0.001]
[1761870743470,0.4687,3822.6,3822.5,2.61603289]
[1761870743634,0.4687,3822.6,3822.3,2.61720053]
[1761870743635,0.422,3822.4,3822.3,0.001]
[1761870743819,0.8902,3822.4,3822.3,0.001]
[1761870744020,1.2682254,3822.4,3822.3,0.001]
[1761870744324,0.8902,3822.4,3822.3,0.001]
[1761870744719,1.40168,3823.1,3822.3,0.001]
[1761870744956,2.61608252,3822.6,3822.3,0.001]
[1761870745138,2.61591547,3822.8,3822.3,0.001]
[1761870745350,2.61605776,3822.6,3822.3,0.001]
[1761870745673,2.61609041,3822.5,3822.3,0.001]
[1761870746046,0.40157378,3822.6,3822.3,0.001]
[1761870746243,1.40168,3823.1,3822.3,0.001]
[1761870746584,2.61615738,3822.4,3822.3,0.001]
[1761870746802,2.61612765,3822.5,3822.3,0.001]
[1761870747075,1.40168,3823.1,3822.3,0.001]
[1761870747242,1.39968,3822.8,3822.3,0.001]
[1761870747442,0.002,3823.1,3822.3,0.02716225]
[1761870748043,0.002,3823.1,3822.7,2.61590335]
[1761870748263,0.002,3823.1,3822.3,0.02716225]
[1761870748264,0.002,3823.1,3822.6,0.0261602]
[1761870748540,0.002,3823.1,3822.7,2.61590504]
[1761870748977,0.002,3823.1,3822.8,2.61587799]
[1761870749445,0.002,3823.1,3822.9,2.61580892]
[1761870749646,0.002,3823.1,3822.9,2.61579499]
[1761870749981,0.002,3823.1,3822.5,2.61603594]
[1761870750282,0.002,3823.1,3822.6,2.61600275]
[1761870750670,0.002,3823.1,3822.7,2.61594191]
[1761870753969,0.002,3823.1,3822.8,2.61586401]
[1761870754656,0.002,3823.1,3822.7,2.61592439]
[1761870755165,0.002,3823.1,3822.3,0.001]
[1761870755550,0.002,3823.1,3822.3,2.61717165]
[1761870755746,0.002,3823.1,3822.4,0.02616157]
[1761870756642,0.002,3823.1,3822.9,2.61576283]
[1761870757047,0.002,3823.1,3823.0,2.64190425]
[1761870758949,0.002,3823.1,3823.0,0.02615746]
[1761870759151,0.002,3823.1,3822.9,2.61581181]
[1761870759650,0.002,3823.1,3822.9,2.64196996]
[1761870759850,0.002,3823.1,3823.0,2.61574679]
[1761870763195,0.002,3823.1,3823.0,3.08224679]
[1761870763485,0.002,3823.1,3823.0,3.6669]
[1761870765113,0.002,3823.1,3823.0,4.1253]
[1761870766292,0.002,3823.1,3823.0,4.530804]
[1761870771416,0.002,3823.1,3823.0,3.6669]
[1761870771805,0.002,3823.1,3823.0,4.14415746]